fUSD/lending_fUSD_20241023
["ID","MTS","AMOUNT","RATE_DAILY","PERIOD"]
[340686832,1729683043243,-6671.3772,0.00043537,2]
[340686833,1729683043254,-292.7985,0.00043547,2]
[340686834,1729683043268,-768.28,0.00043637,30]
[340686835,1729683043277,-4259.45,0.00043637,10]
[340686836,1729683043286,-830.0,0.00043646,68]
[340686837,1729683043296,-23089.04441506,0.00043647,120]
[340686838,1729683043313,-1544.89258494,0.00043647,120]
[340686839,1729683043323,-26.49662806,0.00043647,120]
[340686840,1729683045778,-1226.2,0.00043647,120]
[340686841,1729683045790,-23381.24137194,0.00043647,120]
[340686842,1729683045800,-24633.937,0.00043647,120]
[340686843,1729683045810,-24633.938,0.00043647,120]
[340686844,1729683045820,-24633.937,0.00043647,120]
[340686845,1729683045830,-164.0,0.00043653,2]
[340686846,1729683045840,-346.93533665,0.00043706,10]
[340686847,1729683045849,-191.9,0.00043752,120]
[340686848,1729683045859,-151.0,0.00044,120]
[340686849,1729683045868,-154.6,0.00044451,2]
[340686850,1729683045877,-465.81033645,0.00044689,120]
[340686851,1729683045887,-14403.7646829,0.0004469,2]
[340686852,1729683045904,-1000.0,0.00042972,120]
[340686853,1729683045914,-299.52135636,0.0004469,2]
[340686854,1729683140926,250.0,0.0001,2]
[340686855,1729683144236,300.0,0.00012,2]
[340686858,1729683422415,249.65904055,0.00015,7]
[340686861,1729684119467,2000.0,0.00040202,30]
[340686862,1729684125889,2000.0,0.00040202,30]
[340686863,1729684145005,1534.97,0.00040202,30]
[340686865,1729684231913,-320.41007986,0.00014,2]
[340686866,1729684231925,-29.58992014,0.00014,2]
[340686867,1729684231934,-230.77783215,0.00015,2]
[340686868,1729684231945,-302.04683396,0.00015,2]
[340686869,1729684232130,-360.50156887,0.00015,2]
[340686870,1729684232141,-397.42457406,0.00015,2]
[340686871,1729684232152,-313.45570478,0.00015,2]
[340687415,1729684237880,-380.79348618,0.00015,2]
[340687418,1729684237890,-156.37,0.00015342,2]
[340687420,1729684237899,-159.29,0.00015342,2]
[340687422,1729684237909,-400.0,0.00016,2]
[340687424,1729684237919,-450.0,0.00018,2]
[340687427,1729684237928,-196.73,0.00019178,2]
[340687428,1729684237937,-115.24448782,0.00019725,2]
[340687430,1729684237948,-34.75551218,0.00019725,2]
[340687432,1729684237957,-150.99,0.00019726,2]
[340687434,1729684237966,-93.68602542,0.00019726,2]
[340687436,1729684237977,-245.25397458,0.00019726,2]
[340687438,1729684237986,-10855.94588741,0.00019726,2]
[340687440,1729684237997,-398.55818473,0.00019726,2]
[340687444,1729684238025,-31835.71592786,0.00019726,2]
[340687446,1729684238034,-500.0,0.000198,2]
[340687448,1729684238043,-500.0,0.0002,2]
[340687450,1729684238052,-1000.0,0.0002117,2]
[340687452,1729684238061,-550.0,0.00022,2]
[340687454,1729684238070,-627.886795,0.00023173,2]
[340687455,1729684238079,-156.37,0.0003272,2]
[340687457,1729684238088,-805.91546135,0.00036453,2]
[340687459,1729684238108,-789.15183684,0.00036453,2]
[340687466,1729684238166,-285.68778936,0.00036453,2]
[340687468,1729684238177,-623.24491245,0.00036453,2]
[340687470,1729684238186,-271.76,0.00037677,2]
[340687472,1729684238196,-150.19,0.00039546,2]
[340687474,1729684238205,-250.0,0.0003955,2]
[340687475,1729684238214,-200.0,0.00039628,2]
[340687477,1729684238223,-200.0,0.00039688,2]
[340687479,1729684238233,-250.0,0.00039939,2]
[340687481,1729684238242,-271.76,0.00039941,2]
[340687483,1729684238251,-251.15614161,0.00040001,2]
[340687485,1729684238260,-150.0,0.00040045,2]
[340687487,1729684238269,-250.0,0.00040093,120]
[340687489,1729684238279,-176.98,0.00040118,120]
[340687491,1729684238288,-1060.28,0.00040146,2]
[340687492,1729684238297,-258.22477372,0.00040173,2]
[340687494,1729684238309,-356.17522628,0.00040173,2]
[340687496,1729684238318,-1000.0,0.00040202,30]
[340687498,1729684238328,-150.0,0.00040202,2]
[340687500,1729684238337,-150.0,0.00040311,2]
[340687502,1729684238347,-179.48,0.00040534,2]
[340687504,1729684238356,-1720.62,0.00041084,2]
[340687506,1729684238365,-160.39,0.00041638,2]
[340687507,1729684238374,-385.36424049,0.00041958,62]
[340687509,1729684238386,-865.69,0.00041958,62]
[340687512,1729684238397,-88.27575951,0.00041958,62]
[340687513,1729684238406,-3456.95682332,0.00042,120]
[340687516,1729684238417,-511.64502855,0.00042,120]
[340687518,1729684238428,-404.64145571,0.00042,120]
[340687520,1729684238443,-8126.74669242,0.00042,120]
[340687522,1729684238452,-150.0,0.00042,120]
[340687524,1729684238463,-271.76,0.00042205,2]
[340687526,1729684238473,-8262.0,0.000426,5]
[340687528,1729684238482,-174.56,0.00042796,120]
[340687530,1729684238491,-163.08,0.00042871,2]
[340687558,1729684238750,-385.6,0.00042879,2]
[340687560,1729684238760,-4259.45,0.00043637,10]
[340687562,1729684238769,-4617.809,0.00043647,120]
[340687564,1729684238778,-4617.809,0.00043647,120]
[340687565,1729684238787,-4617.809,0.00043647,120]
[340687567,1729684238796,-4617.809,0.00043647,120]
[340687569,1729684238805,-4617.809,0.00043647,120]
[340687571,1729684238815,-160.39,0.0004372,2]
[340687573,1729684238823,-282.61,0.00043728,120]
[340687575,1729684238832,-1060.29631181,0.000439,120]
[340687577,1729684238841,-197.44,0.0004428,2]
[340687579,1729684238852,-423.01549296,0.00044456,2]
[340687581,1729684238862,-271.76,0.00044469,2]
[340687582,1729684238870,-448.0,0.00044509,2]
[340687584,1729684238880,-1245.0,0.00044509,2]
[340687586,1729684238889,-150.0,0.00044509,2]
[340687588,1729684238899,-299.829,0.00044509,2]
[340687590,1729684238908,-150.782,0.00044509,2]
[340687592,1729684238917,-150.0,0.00044509,2]
[340687594,1729684238926,-164.0,0.00044509,2]
[340687596,1729684238936,-285.663,0.00044509,2]
[340687598,1729684238946,-165.606,0.00044509,2]
[340687600,1729684238955,-200.0,0.00044509,2]
[340687601,1729684238964,-157.017,0.00044509,2]
[340687603,1729684238973,-152.468,0.00044509,2]
[340687605,1729684238983,-180.0,0.00044584,120]
[340687607,1729684238992,-921.9431,0.0004459,2]
[340687609,1729684239001,-1000.0,0.000446,120]
[340687611,1729684239011,-292.7985,0.0004467,2]
[340687612,1729684239020,-784.27752062,0.00044689,2]
[340687614,1729684239029,-167.0,0.00044702,2]
[340687616,1729684239039,-4239.6596791,0.00044709,2]
[340687618,1729684239048,-438.6485256,0.0004475,2]
[340687620,1729684239057,-6671.3772,0.0004478,2]
[340687622,1729684239066,-708.04909708,0.000448,2]
[340687624,1729684239075,-1000.0,0.0004487,3]
[340687626,1729684239084,-500.0,0.0004487,3]
[340687628,1729684239093,-768.28,0.0004487,30]
[340687630,1729684239103,-500.0,0.00044873,10]
[340687632,1729684239113,-500.0,0.00044873,10]
[340687633,1729684239122,-151.0,0.0004488,14]
[340687635,1729684239131,-151.0,0.0004488,14]
[340687637,1729684239140,-154.730428,0.0004488,14]
[340687639,1729684239149,-151.0,0.0004488,14]
[340687641,1729684239158,-151.0,0.0004488,14]
[340687643,1729684239167,-151.686191,0.0004488,14]
[340687645,1729684239176,-273.903331,0.0004488,7]
[340687647,1729684239185,-151.0,0.0004488,14]
[340687649,1729684239194,-153.001311,0.0004488,14]
[340687651,1729684239203,-156.728234,0.0004488,14]
[340687652,1729684239212,-70039.470746,0.0004488,9]
[340687654,1729684239221,-177.54,0.0004488,2]
[340687656,1729684239231,-177.54,0.0004488,2]
[340687658,1729684239240,-500.0,0.00044889,120]
[340687660,1729684239249,-354.40383548,0.00044889,120]
[340687662,1729684239258,-386.68368483,0.00044889,120]
[340687664,1729684239268,-351.58882198,0.00044889,120]
[340687666,1729684239276,-427.40264882,0.00044889,120]
[340687668,1729684239286,-500.0,0.00044889,120]
[340687670,1729684239295,-170095.857526,0.0004489,9]
[340687672,1729684239304,-151.0,0.0004489,14]
[340687674,1729684239313,-151.0,0.0004489,14]
[340687676,1729684239322,-177.54,0.0004489,2]
[340687678,1729684239332,-1969.42719792,0.0004489,2]
[340687680,1729684239341,-151.0,0.0004489,14]
[340687681,1729684239351,-500.0,0.00044899,31]
[340687683,1729684239360,-232.15634564,0.00044899,120]
[340687685,1729684239369,-500.0,0.00044899,31]
[340687687,1729684239378,-207.54856756,0.00044899,31]
[340687689,1729684239388,-356660.80397564,0.000449,10]
[340687691,1729684239398,-154.91709674,0.000449,30]
[340687693,1729684239407,-317.22,0.000449,80]
[340687695,1729684239416,-150.000002,0.000449,61]
[340687697,1729684239426,-1006.56,0.000449,80]
[340687699,1729684239435,-1200.0,0.000449,16]
[340687701,1729684239444,-259.861491,0.000449,14]
[340687703,1729684239454,-579.5037602,0.000449,22]
[340687705,1729684239464,-151.0,0.000449,14]
[340687707,1729684239474,-151.0,0.000449,14]
[340687709,1729684239484,-1000.0,0.0004497,3]
[340687711,1729684239493,-500.0,0.0004497,3]
[340687713,1729684239502,-12870.7708066,0.0004499,9]
[340687715,1729684239512,-159.0,0.00045,120]
[340687716,1729684239521,-300.0,0.00045,5]
[340687718,1729684239531,-150.0,0.00045,120]
[340687720,1729684239540,-28385.14053222,0.00045,60]
[340687722,1729684239550,-151.0,0.00045014,120]
[340687724,1729684239561,-614.4,0.00045194,2]
[340687726,1729684239571,-181.14487426,0.00045473,20]
[340687728,1729684239580,-822.0,0.00045573,7]
[340687730,1729684239591,-500.0,0.00045603,4]
[340687732,1729684239603,-6435.38540332,0.00045611,9]
[340687733,1729684239612,-152.690824,0.00045611,14]
[340687734,1729684239622,-500.0,0.00045612,4]
[340687735,1729684239631,-500.0,0.00045621,4]
[340687736,1729684239642,-500.0,0.0004563,4]
[340687737,1729684239651,-500.0,0.00045638,4]
[340687738,1729684239661,-500.0,0.00045647,4]
[340687739,1729684239673,-500.0,0.00045647,4]
[340687740,1729684239684,-500.0,0.00045656,4]
[340687742,1729684239694,-500.0,0.00045656,4]
[340687744,1729684239704,-500.0,0.00045665,4]
[340687747,1729684239714,-500.0,0.00045665,4]
[340687749,1729684239724,-500.0,0.00045673,2]
[340687752,1729684239734,-500.0,0.00045673,2]
[340687754,1729684239745,-500.0,0.00045673,2]
[340687756,1729684239755,-500.0,0.00045673,2]
[340687758,1729684239764,-500.0,0.00045673,2]
[340687760,1729684239774,-407.0096,0.00045673,2]
[340687761,1729684239783,-1000.0,0.00045673,2]
[340687763,1729684239792,-1000.0,0.00045673,2]
[340687765,1729684239801,-1000.0,0.00045673,2]
[340687767,1729684239812,-541.842,0.00045673,2]
[340687769,1729684239822,-500.0,0.00045674,4]
[340687771,1729684239831,-500.0,0.00045674,4]
[340687773,1729684239840,-6435.38540332,0.00045681,9]
[340687775,1729684239851,-500.0,0.00045682,4]
[340687777,1729684239860,-500.0,0.00045682,4]
[340687779,1729684239870,-500.0,0.00045691,4]
[340687781,1729684239880,-500.0,0.00045691,4]
[340687784,1729684239889,-500.0,0.000457,4]
[340687786,1729684239899,-500.0,0.000457,4]
[340687788,1729684239909,-1000.0,0.0004577,3]
[340687790,1729684239919,-1000.0,0.0004577,3]
[340687793,1729684239929,-1000.0,0.0004577,3]
[340687795,1729684239938,-1000.0,0.0004577,3]
[340687796,1729684239947,-500.0,0.0004577,3]
[340687798,1729684239957,-500.0,0.0004577,3]
[340687800,1729684239967,-500.0,0.0004577,3]
[340687802,1729684239977,-500.0,0.0004577,3]
[340687804,1729684239987,-1851.889454,0.000458,2]
[340687806,1729684239996,-160.39,0.00045802,2]
[340687808,1729684240006,-1000.0,0.0004587,3]
[340687810,1729684240016,-500.0,0.0004587,3]
[340687812,1729684240026,-150.01,0.00045902,2]
[340687815,1729684240038,-674.20449269,0.00045902,2]
[340687816,1729684240047,-6435.38540332,0.0004597,9]
[340687817,1729684240057,-3888.39138778,0.0004598,7]
[340687818,1729684240066,-538.34,0.00045999,2]
[340687819,1729684240076,-497.15335985,0.00046,30]
[340687820,1729684240086,-151.0,0.00046,120]
[340687821,1729684240096,-211.31218688,0.00046,120]
[340687822,1729684240106,-237.72762279,0.00046,120]
[340687823,1729684240116,-6435.38540332,0.00046159,9]
[340687824,1729684240126,-280.8438709,0.00046242,10]
[340687825,1729684240136,-1001.94917316,0.00046242,10]
[340687826,1729684240146,-6435.38540332,0.0004659,9]
[340687827,1729684240155,-7500.0,0.000466,120]
[340687828,1729684240165,-209.0,0.0004662,30]
[340687829,1729684240175,-632.46,0.00046635,94]
[340687830,1729684240185,-5249.0,0.000467,117]
[340687831,1729684240194,-6435.38540332,0.00046726,9]
[340687832,1729684240203,-271.76,0.00046733,2]
[340687833,1729684240212,-5082.22,0.00046737,30]
[340687834,1729684240222,-6334.0,0.00046737,2]
[340687835,1729684240232,-152.0,0.00046882,3]
[340687836,1729684240241,-579.50376019,0.000469,24]
[340687837,1729684240251,-6435.38540332,0.0004699,10]
[340687838,1729684240261,-3504.27514135,0.00047,14]
[340687840,1729684240270,-375.0,0.00047002,14]
[340687842,1729684240280,-1119.92784297,0.0004704,10]
[340687844,1729684240289,-150.0,0.00047509,2]
[340687845,1729684240299,-150.0,0.00047509,2]
[340687846,1729684240309,-150.0,0.00047509,2]
[340687847,1729684240318,-6435.38540332,0.00047533,10]
[340687848,1729684240327,-15955.28898395,0.00047543,10]
[340687849,1729684240337,-165.958973,0.00047663,30]
[340687850,1729684240347,-163.33255,0.00047663,30]
[340687851,1729684240356,-181.1448742,0.00047695,29]
[340687852,1729684240366,-12870.7708066,0.00047739,10]
[340687853,1729684240375,-160.39,0.00047884,2]
[340687854,1729684240385,-209.0,0.0004798,30]
[340687855,1729684240396,-151.0,0.00048,120]
[340687856,1729684240405,-350.0,0.00048,120]
[340687857,1729684240415,-182.09716312,0.00048,30]
[340687858,1729684240424,-500.0,0.00048,120]
[340687859,1729684240434,-154.62,0.00048,120]
[340687860,1729684240443,-154.62,0.00048,120]
[340687861,1729684240453,-154.62,0.00048,120]
[340687862,1729684240463,-154.62,0.00048,120]
[340687863,1729684240473,-154.62,0.00048,120]
[340687864,1729684240483,-154.62,0.00048,120]
[340687865,1729684240493,-154.62,0.00048,120]
[340687866,1729684240503,-303.4,0.000481,30]
[340687867,1729684240513,-360.0,0.000481,30]
[340687868,1729684240523,-228.0,0.000481,30]
[340687869,1729684240532,-385.6,0.00048239,2]
[340687870,1729684240542,-606.79,0.00048392,120]
[340687871,1729684240551,-606.79,0.00048392,120]
[340687872,1729684240560,-606.79,0.00048392,30]
[340687873,1729684240570,-606.79,0.00048438,120]
[340687874,1729684240580,-165.958973,0.00048458,30]
[340687875,1729684240595,-2360.0,0.00048463,7]
[340687876,1729684240605,-6435.38540332,0.00048464,10]
[340687877,1729684240615,-606.79,0.00048474,120]
[340687878,1729684240625,-1142.28,0.00048474,120]
[340687879,1729684240636,-606.79,0.00048474,120]
[340687880,1729684240646,-606.79,0.00048474,120]
[340687881,1729684240656,-606.79,0.00048474,120]
[340687882,1729684240667,-606.79,0.00048474,120]
[340687883,1729684240677,-154.62,0.00048507,120]
[340687884,1729684240687,-38612.3124199,0.00048508,10]
[340687885,1729684240697,-154.62,0.00048508,120]
[340687886,1729684240707,-177.00453998,0.00048517,120]
[340687887,1729684240717,-2088.5177154,0.00048517,120]
[340687888,1729684240726,-81727.0,0.00048518,120]
[340687889,1729684240736,-151.0,0.00048518,14]
[340687890,1729684240746,-221.215101,0.00048518,14]
[340687891,1729684240755,-151.0,0.00048518,14]
[340687892,1729684240765,-151.0,0.00048518,14]
[340687893,1729684240775,-500.0,0.00048573,10]
[340687894,1729684240785,-501.22946799,0.00048573,10]
[340687895,1729684240794,-1000.0,0.0004867,3]
[340687896,1729684240804,-500.0,0.0004867,3]
[340687897,1729684240814,-500.0,0.000487,18]
[340687898,1729684240823,-500.0,0.000487,18]
[340687899,1729684240833,-500.0,0.000487,18]
[340687900,1729684240844,-500.0,0.000487,18]
[340687901,1729684240853,-500.0,0.000487,18]
[340687902,1729684240863,-500.0,0.000487,18]
[340687903,1729684240873,-12870.7708066,0.00048771,10]
[340687904,1729684240882,-154.62,0.00048771,120]
[340687905,1729684240891,-1058.53341625,0.00048781,7]
[340687906,1729684240901,-2902.25980232,0.00048781,7]
[340687907,1729684240911,-10146.00002,0.00048781,7]
[340687908,1729684240920,-1705.54999991,0.00048781,7]
[340687909,1729684240930,-2400.0,0.000488,17]
[340687910,1729684240940,-163.33255,0.00048855,30]
[340687911,1729684240949,-150.0,0.00048879,2]
[340687912,1729684240959,-3600.0,0.000489,17]
[340687913,1729684240969,-579.50376019,0.000489,27]
[340687914,1729684240978,-438.6485256,0.00048966,2]
[340687915,1729684240988,-215.86096684,0.00048973,7]
[340687916,1729684240997,-400.43823822,0.00048973,10]
[340687917,1729684241007,-151.03691118,0.00048973,10]
[340687918,1729684241017,-154.62,0.0004898,120]
[340687919,1729684241027,-51483.0832266,0.0004899,10]
[340687920,1729684241037,-154.62,0.0004899,120]
[340687921,1729684241047,-154.62,0.0004899,120]
[340687922,1729684241056,-271.76,0.00048997,2]
[340687923,1729684241065,-50000.0,0.00049,49]
[340687924,1729684241075,-50000.0,0.00049,59]
[340687925,1729684241084,-442.17187362,0.00049,120]
[340687926,1729684241093,-500.0,0.00049,120]
[340687927,1729684241102,-500.0,0.00049,120]
[340687928,1729684241112,-500.0,0.00049,120]
[340687929,1729684241121,-500.0,0.00049,120]
[340687930,1729684241131,-500.0,0.00049,120]
[340687931,1729684241140,-500.0,0.00049,120]
[340687932,1729684241149,-549.08764271,0.00049,120]
[340687933,1729684241158,-500.0,0.00049,120]
[340687934,1729684241168,-500.0,0.00049,120]
[340687936,1729684241177,-6435.38540332,0.00049024,10]
[340687938,1729684241187,-3633.0,0.00049034,10]
[340687940,1729684241196,-3133.0,0.00049034,10]
[340687942,1729684241205,-282.61,0.00049194,120]
[340687944,1729684241215,-606.79,0.00049247,120]
[340687946,1729684241224,-165.958973,0.00049252,30]
[340687948,1729684241234,-4472.2286841,0.00049281,2]
[340687950,1729684241244,-6435.38540332,0.0004929,10]
[340687951,1729684241254,-154.62,0.00049295,120]
[340687953,1729684241263,-3000.0,0.000493,2]
[340687955,1729684241272,-300.0,0.000493,2]
[340687957,1729684241281,-151.0,0.00049305,14]
[340687959,1729684241291,-151.0,0.00049305,14]
[340687961,1729684241300,-159.015299,0.00049305,14]
[340687963,1729684241311,-25741.5416133,0.00049305,10]
[340687965,1729684241320,-1969.42719792,0.00049305,2]
[340687967,1729684241329,-154.62,0.00049305,120]
[340687968,1729684241339,-154.62,0.00049305,120]
[340687970,1729684241350,-2152.57,0.00049315,7]
[340687972,1729684241359,-299.74021332,0.00049315,2]
[340687974,1729684241368,-500.0,0.00049315,2]
[340687976,1729684241377,-500.0,0.00049315,120]
[340687977,1729684241387,-167.76204332,0.00049315,120]
[340687978,1729684241396,-392.92111484,0.00049315,120]
[340687979,1729684241406,-500.0,0.00049315,120]
[340687980,1729684241415,-500.0,0.00049315,120]
[340687981,1729684241424,-500.0,0.00049315,120]
[340687982,1729684241433,-500.0,0.00049315,120]
[340687983,1729684241443,-500.0,0.00049315,120]
[340687984,1729684241453,-500.0,0.00049315,120]
[340687985,1729684241463,-597.00040818,0.00049315,120]
[340687986,1729684241472,-500.0,0.00049315,120]
[340687987,1729684241481,-500.0,0.00049315,120]
[340687988,1729684241491,-348.63649439,0.00049315,120]
[340687989,1729684241500,-500.0,0.00049315,120]
[340687990,1729684241509,-500.0,0.00049315,120]
[340687991,1729684241519,-500.0,0.00049315,120]
[340687992,1729684241529,-500.0,0.00049315,120]
[340687993,1729684241538,-500.0,0.00049315,120]
[340687994,1729684241548,-500.0,0.00049315,120]
[340687995,1729684241557,-200.0,0.00049315,120]
[340687996,1729684241567,-500.0,0.00049315,120]
[340687997,1729684241576,-500.0,0.00049315,120]
[340687998,1729684241587,-500.0,0.00049315,120]
[340687999,1729684241600,-500.0,0.00049315,120]
[340688000,1729684241610,-500.0,0.00049315,120]
[340688001,1729684241619,-500.0,0.00049315,120]
[340688002,1729684241629,-187.9276053,0.00049315,120]
[340688003,1729684241639,-500.0,0.00049315,120]
[340688004,1729684241649,-500.0,0.00049315,120]
[340688005,1729684241659,-500.0,0.00049315,120]
[340688006,1729684241669,-500.0,0.00049315,120]
[340688007,1729684241678,-500.0,0.00049315,120]
[340688008,1729684241688,-500.0,0.00049315,120]
[340688009,1729684241698,-500.0,0.00049315,120]
[340688010,1729684241707,-241.7582002,0.00049315,120]
[340688011,1729684241716,-500.0,0.00049315,120]
[340688012,1729684241726,-500.0,0.00049315,21]
[340688013,1729684241736,-500.0,0.00049315,120]
[340688014,1729684241745,-500.0,0.00049315,120]
[340688015,1729684241755,-500.0,0.00049315,120]
[340688016,1729684241764,-616.85132326,0.00049315,120]
[340688017,1729684241774,-500.0,0.00049315,120]
[340688018,1729684241783,-396.84827786,0.00049315,120]
[340688019,1729684241792,-500.0,0.00049315,120]
[340688020,1729684241802,-500.0,0.00049315,120]
[340688021,1729684241811,-500.0,0.00049315,120]
[340688022,1729684241820,-500.0,0.00049315,120]
[340688023,1729684241830,-500.0,0.00049315,120]
[340688024,1729684241839,-265.17206115,0.00049315,120]
[340688025,1729684241850,-522.86392585,0.00049315,120]
[340688026,1729684241863,-500.0,0.00049315,120]
[340688027,1729684241873,-500.0,0.00049315,120]
[340688028,1729684241882,-500.0,0.00049315,120]
[340688029,1729684241891,-500.0,0.00049315,120]
[340688030,1729684241901,-541.06,0.00049315,120]
[340688031,1729684241910,-500.0,0.00049315,120]
[340688032,1729684241919,-500.0,0.00049315,120]
[340688033,1729684241929,-500.0,0.00049315,120]
[340688034,1729684241939,-500.0,0.00049315,120]
[340688035,1729684241948,-500.0,0.00049315,120]
[340688036,1729684241958,-500.0,0.00049315,120]
[340688037,1729684241967,-500.0,0.00049315,120]
[340688038,1729684241976,-500.0,0.00049315,120]
[340688039,1729684241985,-500.0,0.00049315,120]
[340688040,1729684241994,-500.0,0.00049315,120]
[340688041,1729684242004,-500.0,0.00049315,120]
[340688042,1729684242014,-500.0,0.00049315,120]
[340688043,1729684242023,-500.0,0.00049315,120]
[340688044,1729684242033,-500.0,0.00049315,120]
[340688045,1729684242042,-554.59,0.00049315,120]
[340688046,1729684242052,-500.0,0.00049315,120]
[340688047,1729684242061,-500.0,0.00049315,120]
[340688048,1729684242071,-500.0,0.00049315,120]
[340688049,1729684242080,-500.0,0.00049315,120]
[340688050,1729684242090,-500.0,0.00049315,120]
[340688051,1729684242103,-500.0,0.00049315,120]
[340688052,1729684242112,-500.0,0.00049315,120]
[340688053,1729684242121,-500.0,0.00049315,120]
[340688054,1729684242131,-500.0,0.00049315,120]
[340688055,1729684242140,-567.29,0.00049315,120]
[340688056,1729684242150,-500.0,0.00049315,120]
[340688057,1729684242159,-500.0,0.00049315,120]
[340688058,1729684242169,-390.6,0.00049315,120]
[340688059,1729684242178,-1062.275,0.00049315,120]
[340688060,1729684242187,-500.0,0.00049315,120]
[340688061,1729684242197,-379.39178853,0.00049315,120]
[340688062,1729684242206,-500.0,0.00049315,120]
[340688063,1729684242216,-500.0,0.00049315,120]
[340688064,1729684242227,-500.0,0.00049315,120]
[340688065,1729684242239,-500.0,0.00049315,120]
[340688066,1729684242250,-509.41183764,0.00049315,120]
[340688067,1729684242260,-567.3,0.00049315,120]
[340688068,1729684242270,-500.0,0.00049315,120]
[340688069,1729684242280,-500.0,0.00049315,120]
[340688070,1729684242289,-500.0,0.00049315,120]
[340688071,1729684242299,-500.0,0.00049315,120]
[340688072,1729684242308,-584.0,0.00049315,120]
[340688073,1729684242318,-500.0,0.00049315,120]
[340688074,1729684242327,-500.0,0.00049315,120]
[340688075,1729684242337,-500.0,0.00049315,120]
[340688076,1729684242349,-500.0,0.00049315,120]
[340688077,1729684242362,-500.0,0.00049315,120]
[340688078,1729684242371,-500.0,0.00049315,120]
[340688079,1729684242381,-500.0,0.00049315,120]
[340688080,1729684242390,-500.0,0.00049315,120]
[340688081,1729684242399,-500.0,0.00049315,120]
[340688082,1729684242409,-500.0,0.00049315,120]
[340688083,1729684242419,-500.0,0.00049315,120]
[340688084,1729684242431,-500.0,0.00049315,120]
[340688085,1729684242442,-500.0,0.00049315,120]
[340688086,1729684242453,-504.24206881,0.00049315,120]
[340688087,1729684242463,-500.0,0.00049315,120]
[340688088,1729684242473,-500.0,0.00049315,120]
[340688089,1729684242483,-485.0,0.00049315,120]
[340688090,1729684242493,-500.0,0.00049315,120]
[340688091,1729684242502,-183.22458381,0.00049315,120]
[340688092,1729684242512,-195.19459317,0.00049315,120]
[340688093,1729684242522,-278.93355236,0.00049315,120]
[340688094,1729684242532,-500.0,0.00049315,120]
[340688095,1729684242542,-500.0,0.00049315,120]
[340688096,1729684242551,-500.0,0.00049315,120]
[340688097,1729684242561,-500.0,0.00049315,120]
[340688098,1729684242571,-500.0,0.00049315,120]
[340688099,1729684242581,-500.0,0.00049315,120]
[340688100,1729684242590,-500.0,0.00049315,120]
[340688101,1729684242601,-500.0,0.00049315,120]
[340688102,1729684242614,-500.0,0.00049315,120]
[340688103,1729684242623,-520.35596669,0.00049315,120]
[340688104,1729684242633,-500.0,0.00049315,120]
[340688105,1729684242643,-500.0,0.00049315,120]
[340688106,1729684242655,-494.87306593,0.00049315,120]
[340688107,1729684242665,-500.0,0.00049315,60]
[340688108,1729684242675,-500.0,0.00049315,60]
[340688109,1729684242687,-387.17775691,0.00049315,60]
[340688110,1729684242697,-500.0,0.00049315,120]
[340688111,1729684242707,-500.0,0.00049315,120]